lending/lending_fUSD_20240610
["ID","MTS","AMOUNT","RATE_DAILY","PERIOD"]
[328944791,1718020247792,-533.21,0.00015757,2]
[328944792,1718020247802,-150.0,0.0001577,2]
[328944793,1718020247812,-200.0,0.00015851,2]
[328944794,1718020247822,-200.0,0.00015992,2]
[328944795,1718020247840,-167.55,0.00016008,2]
[328944797,1718020247852,-250.0,0.00016155,2]
[328944799,1718020247863,-2822.61359367,0.00016809,2]
[328944801,1718020247873,-150.59,0.00017798,2]
[328944803,1718020247883,-533.21,0.00018021,2]
[328944805,1718020247893,-2822.61359367,0.00018264,2]
[328944807,1718020247903,-150.59,0.00019168,2]
[328944809,1718020247914,-217.56134227,0.00019178,2]
[328944810,1718020247924,-1000.0,0.0001929,2]
[328944811,1718020247934,-2822.61359367,0.00019718,2]
[328944812,1718020247944,-1000.0,0.0002,2]
[328944813,1718020247955,-167.55,0.0002001,2]
[328944814,1718020247965,-226.69645122,0.000201,2]
[328944815,1718020247974,-533.21,0.00020285,2]
[328944816,1718020247984,-150.357,0.00020928,2]
[328944817,1718020247994,-2822.61359367,0.00021173,2]
[328944818,1718020248004,-172.48,0.00021525,2]
[328944819,1718020248014,-1000.0,0.00021701,2]
[328944820,1718020248026,-4259.12933176,0.000219,2]
[328944821,1718020248036,-160.27,0.00021918,2]
[328944822,1718020248046,-1135.83,0.00022015,2]
[328944823,1718020248057,-11739.0,0.000224,5]
[328944824,1718020248067,-533.21,0.00022549,2]
[328944825,1718020248077,-2822.61359367,0.00022627,2]
[328944826,1718020248087,-364.67036088,0.00024,3]
[328944827,1718020248096,-167.55,0.00024012,2]
[328944828,1718020248106,-2822.61359367,0.00024082,2]
[328944829,1718020248117,-1000.0,0.00024113,2]
[328944830,1718020248126,-180.0,0.0002423,2]
[328944831,1718020248136,-352.13,0.00024384,2]
[328944832,1718020248146,-1042.87918512,0.00024753,2]
[328944833,1718020248156,-3975.4398,0.00024767,10]
[328944834,1718020248166,-4705.16582407,0.00024798,2]
[328944835,1718020248176,-4705.16582405,0.00024798,2]
[328944836,1718020248186,-4705.16582405,0.00024798,2]
[328944837,1718020248196,-4705.16582405,0.00024798,2]
[328944838,1718020248206,-4705.16582405,0.00024798,2]
[328944839,1718020248216,-4705.16582405,0.00024798,2]
[328944840,1718020248225,-4705.16582405,0.00024798,2]
[328944841,1718020248235,-220.11504019,0.00024799,2]
[328944842,1718020248245,-220.11504011,0.00024799,2]
[328944843,1718020248255,-220.11504011,0.00024799,2]
[328944844,1718020248265,-220.11504011,0.00024799,2]
[328944845,1718020248275,-220.11504011,0.00024799,2]
[328944846,1718020248285,-220.11504011,0.00024799,2]
[328944847,1718020248294,-220.11504011,0.00024799,2]
[328944848,1718020248304,-150.0,0.000248,2]
[328944849,1718020248313,-533.21,0.00024813,2]
[328944850,1718020248323,-200.0,0.00024871,2]
[328944851,1718020248333,-1250.0,0.00025,2]
[328944852,1718020248342,-250.0,0.00025348,2]
[328944853,1718020248352,-2822.61359367,0.00025536,2]
[328944854,1718020248361,-350.0,0.00025896,2]
[328944855,1718020248371,-157.1056817,0.00026108,2]
[328944856,1718020248381,-220.11504011,0.00026344,2]
[328944857,1718020248390,-4705.16582405,0.00026344,2]
[328944858,1718020248400,-300.0,0.00026444,2]
[328944859,1718020248410,-157.1056817,0.00026457,2]
[328944860,1718020248420,-1000.0,0.00026524,2]
[328944861,1718020248429,-157.20936773,0.00026607,2]
[328944862,1718020248439,-155.56848631,0.000267,2]
[328944863,1718020248449,-155.56848631,0.00026819,2]
[328944864,1718020248459,-157.1056817,0.00026985,2]
[328944865,1718020248469,-2822.61359367,0.00026991,2]
[328944866,1718020248479,-150.0,0.00027,4]
[328944867,1718020248489,-150.0,0.00027,4]
[328944868,1718020248499,-150.0,0.00027,4]
[328944869,1718020248509,-150.0,0.00027,4]
[328944870,1718020248519,-150.0,0.00027,4]
[328944871,1718020248531,-157.20936774,0.00027041,2]
[328944872,1718020248542,-533.21,0.00027077,2]
[328944873,1718020248551,-157.1056817,0.00027255,2]
[328944874,1718020248561,-157.1056817,0.000273,2]
[328944875,1718020248572,-157.1056817,0.00027332,2]
[328944876,1718020248581,-234.113233,0.00027337,2]
[328944877,1718020248591,-812.313062,0.00027337,2]
[328944878,1718020248601,-373.290067,0.00027337,2]
[328944879,1718020248611,-171.375081,0.00027337,2]
[328944880,1718020248620,-150.0,0.00027375,4]
[328944881,1718020248630,-500.0,0.00027397,2]
[328944882,1718020248639,-150.774542,0.00027397,2]
[328944883,1718020248649,-152.06,0.00027397,2]
[328944884,1718020248659,-157.1056817,0.00027398,2]
[328944885,1718020248672,-150.0,0.00027429,7]
[328944886,1718020248682,-160.46103226,0.00027479,2]
[328944887,1718020248692,-155.56848631,0.00027527,2]
[328944888,1718020248702,-150.0,0.000276,7]
[328944889,1718020248713,-978.0,0.00027614,2]
[328944890,1718020248723,-1830.0,0.00027614,2]
[328944891,1718020248733,-1269.0,0.00027614,2]
[328944892,1718020248745,-441.0,0.00027614,2]
[328944893,1718020248755,-616.0,0.00027614,2]
[328944894,1718020248765,-1650.0,0.00027614,2]
[328944895,1718020248776,-447.0,0.00027614,2]
[328944896,1718020248786,-809.0,0.00027614,2]
[328944897,1718020248796,-165.0,0.00027614,2]
[328944898,1718020248806,-2406.0,0.00027614,2]
[328944899,1718020248815,-150.0,0.00027614,2]
[328944900,1718020248825,-546.0,0.00027614,2]
[328944901,1718020248835,-1304.0,0.00027614,2]
[328944902,1718020248845,-3176.0,0.00027614,2]
[328944903,1718020248855,-1978.0,0.00027614,2]
[328944904,1718020248865,-5155.0,0.00027614,2]
[328944905,1718020248874,-290.0,0.00027614,2]
[328944906,1718020248884,-5784.0,0.00027614,2]
[328944907,1718020248893,-1065.0,0.00027614,2]
[328944908,1718020248903,-812.313062,0.00027679,2]
[328944909,1718020248913,-373.290067,0.00027679,2]
[328944910,1718020248922,-150.0,0.0002775,7]
[328944911,1718020248932,-155.0,0.0002781,2]
[328944912,1718020248942,-150.0,0.00027857,7]
[328944913,1718020248952,-164.54501528,0.00027991,2]
[328944914,1718020248962,-200.14857797,0.00028,2]
[328944915,1718020248972,-812.313062,0.0002802,2]
[328944916,1718020248982,-373.290067,0.0002802,2]
[328944917,1718020248992,-157.1056817,0.00028117,2]
[328944918,1718020249001,-1241.20701041,0.00028118,2]
[328944919,1718020249011,-220.11504011,0.00028122,2]
[328944920,1718020249020,-4705.16582405,0.00028122,2]
[328944921,1718020249032,-150.0,0.00028125,7]
[328944922,1718020249042,-150.0,0.000282,7]
[328944923,1718020249052,-150.0,0.00028286,7]
[328944924,1718020249062,-321.64,0.00028303,2]
[328944925,1718020249071,-160.46103227,0.00028304,2]
[328944926,1718020249081,-812.313062,0.00028362,2]
[328944927,1718020249090,-373.290067,0.00028362,2]
[328944928,1718020249100,-2822.61359367,0.00028445,2]
[328944929,1718020249109,-150.0,0.000285,7]
[328944930,1718020249119,-150.0,0.000285,7]
[328944931,1718020249128,-161.59632342,0.0002852,2]
[328944932,1718020249138,-157.1056817,0.00028589,2]
[328944933,1718020249147,-157.1056817,0.00028674,2]
[328944934,1718020249157,-14315.5078245,0.0002868,2]
[328944935,1718020249166,-812.313062,0.00028704,2]
[328944936,1718020249175,-373.290067,0.00028704,2]
[328944937,1718020249185,-150.0,0.00028714,7]
[328944938,1718020249194,-441.05208698,0.0002874,4]
[328944939,1718020249203,-1275.80716,0.0002874,2]
[328944940,1718020249213,-150.0,0.000288,7]
[328944941,1718020249222,-500.0,0.00028804,2]
[328944942,1718020249232,-200.0,0.00028804,2]
[328944943,1718020249241,-500.0,0.00028808,2]
[328944944,1718020249251,-150.0,0.00028875,7]
[328944945,1718020249260,-151.91,0.00028931,2]
[328944946,1718020249270,-1000.0,0.00028935,2]
[328944947,1718020249282,-101557.82235971,0.00028941,2]
[328944948,1718020249460,-1171.88706265,0.00028941,2]
[328944949,1718020263528,150.5,0.0001979,15]
[328944950,1718020264093,165.45,0.0001978,15]
[328944953,1718021345192,-155.0,0.00013984,2]
[328944954,1718021345216,-506.80366576,0.00013985,2]
[328944955,1718021345240,-2370.77689173,0.00013985,2]
[328944956,1718021345266,-340.07702553,0.00013986,2]
[328944957,1718021363162,-5243.36556697,0.00013986,2]
[328944958,1718021363187,-1637.23660012,0.00013987,2]
[328944959,1718021363210,-482.41053863,0.00014,2]
[328944960,1718021363238,-419.89302594,0.00014835,2]
[328944961,1718021363262,-1853.99,0.00017808,2]
[328944962,1718021363286,-1696.0,0.000189,2]
[328944963,1718021363309,-535.23,0.00019452,2]
[328944964,1718021363333,-866.48292432,0.0001968,2]
[328944965,1718021363357,-2486.02868616,0.0001977,2]
[328944983,1718021433057,-594.0,0.000189,2]
[328944984,1718021433068,-730.76351156,0.0001977,2]
[328944985,1718021433081,-628.12349577,0.0001977,2]
[328944986,1718021433097,-684.35390144,0.0001977,2]
[328944987,1718021433110,-4819.32431323,0.0001977,2]
[328944988,1718021433123,-947.931432,0.0001977,2]
[328944989,1718021433133,-1042.87918512,0.0001977,2]
[328944990,1718021433144,-299.75188144,0.0001978,2]
[328944991,1718021433154,-2227.97824149,0.0001978,2]
[328944992,1718021433164,-64950.33936471,0.0001978,2]
[328944993,1718021433289,-3866.94812461,0.0001978,2]
[328944994,1718021433299,-197.81369082,0.0001978,2]
[328944995,1718021433309,-226.69645122,0.000201,2]
[328944996,1718021433320,-200.0,0.00023082,2]
[328944997,1718021433330,-497.83,0.00023184,2]
[328944998,1718021433340,-23900.0,0.0002324,2]
[328944999,1718021433349,-105.76956527,0.0002496,2]
[328945000,1718021433364,-2249.70043473,0.0002496,2]
[328945001,1718021433373,-9.77932383,0.00025095,2]
[328945002,1718021433384,-156.94067617,0.00025095,2]
[328945003,1718021433394,-454.56,0.00025204,2]
[328945004,1718021433404,-188.49932383,0.00025232,2]
[328945005,1718021433416,-141.44251572,0.00025232,2]
[328945006,1718021433425,-165.05787613,0.00025232,2]
[328945007,1718021433434,-214.86601561,0.00025232,2]
[328945008,1718021433446,-174.88491301,0.00025232,2]
[328945009,1718021433457,-158.81,0.00025295,2]
[328945010,1718021433467,-151.95,0.0002532,2]
[328945011,1718021433477,-97.28013436,0.0002532,2]
[328945012,1718021433503,-9.28017832,0.0002532,2]
[328945013,1718021433527,-81.91933277,0.0002532,2]
[328945014,1718021433537,-489.70007622,0.00025331,2]
[328945015,1718021433550,-909.67996557,0.00025331,2]
[328945016,1718021433915,-17.31437363,0.00025331,2]
[328945017,1718021433928,-836.27558458,0.00025331,2]
[328945018,1718021433938,-200.0,0.00025379,2]
[328945019,1718021433948,-497.83,0.00025448,2]
[328945020,1718021433958,-150.61,0.00025761,2]
[328945021,1718021433969,-329.94183955,0.00025842,2]
[328945022,1718021433979,-250.0,0.00025883,2]
[328945023,1718021433989,-165.05787612,0.00026033,2]
[328945024,1718021433998,-1000.0,0.00026067,2]
[328945025,1718021434009,-150.358,0.00026067,2]
[328945026,1718021434019,-152.84255884,0.00026269,2]
[328945027,1718021434030,-6035.21691995,0.0002645,2]
[328945028,1718021434043,-203243.56078365,0.0002645,2]
[328945037,1718021438921,-6796.89420721,0.0001977,2]
[328945038,1718021439002,-470.79451812,0.0001977,2]
[328945039,1718021439014,-189.46709719,0.0001977,2]
[328945040,1718021439025,-1108.63360794,0.0002645,2]
[328945041,1718021439038,-450.89332225,0.0002645,2]
[328945042,1718021439054,-272.32466048,0.0002645,2]
[328945043,1718021439066,-261.10428232,0.0002645,2]
[328945044,1718021439083,-2330.71214622,0.0002645,2]
[328945046,1718021442654,-945.80514841,0.00026352,2]
[328945047,1718021442665,-346179.19485127,0.0002645,2]
[328945048,1718021442677,-131467.25154606,0.0002645,2]
[328945049,1718021442688,-329.94183955,0.00026451,2]
[328945050,1718021442698,-163.93271714,0.00026637,2]
[328945051,1718021442708,-5155.0,0.00026687,2]
[328945052,1718021442719,-5784.0,0.00026687,2]
[328945053,1718021442729,-290.0,0.00026687,2]
[328945054,1718021442739,-1065.0,0.00026687,2]
[328945055,1718021442749,-217.78933349,0.00026708,2]
[328945056,1718021442759,-153.76010169,0.00026816,2]
[328945057,1718021442770,-165.05787612,0.00026834,2]
[328945058,1718021442780,-288.09237524,0.00027025,2]
[328945059,1718021442791,-329.94183955,0.00027061,2]
[328945060,1718021442802,-153.76010169,0.00027125,2]
[328945061,1718021442813,-152.84255884,0.00027292,2]
[328945062,1718021442826,-288.09237524,0.00027344,2]
[328945063,1718021442836,-278.90337515,0.00027397,2]
[328945064,1718021442846,-172.99,0.00027397,2]
[328945065,1718021442857,-150.358,0.00027435,2]
[328945066,1718021442867,-700.0,0.00027514,2]
[328945067,1718021442878,-161.59632343,0.0002752,2]
[328945068,1718021442888,-7169.2593032,0.000276,2]
[328945069,1718021442898,-978.0,0.00027614,2]
[328945070,1718021442910,-441.0,0.00027614,2]
[328945071,1718021442921,-1269.0,0.00027614,2]
[328945072,1718021442932,-615.954,0.00027614,2]
[328945073,1718021442942,-1650.0,0.00027614,2]
[328945074,1718021442952,-1830.0,0.00027614,2]
[328945075,1718021442963,-447.0,0.00027614,2]
[328945076,1718021442973,-809.0,0.00027614,2]
[328945077,1718021442984,-2406.0,0.00027614,2]
[328945078,1718021442994,-1304.0,0.00027614,2]
[328945079,1718021443005,-546.0,0.00027614,2]
[328945080,1718021443016,-3176.0,0.00027614,2]
[328945081,1718021443026,-1978.0,0.00027614,2]
[328945082,1718021443036,-165.05787612,0.00027635,2]
[328945083,1718021443049,-288.09237524,0.00027664,2]
[328945084,1718021443059,-329.94183955,0.00027671,2]
[328945085,1718021443069,-497.83,0.00027712,2]
[328945086,1718021443232,-820.2719658,0.0002781,2]
[328945087,1718021443254,-288.09237524,0.00027983,2]
[328945088,1718021443264,-152.37734469,0.00028194,2]
[328945089,1718021443274,-329.94183955,0.00028281,2]
[328945090,1718021443284,-288.09237524,0.00028303,2]
[328945091,1718021443295,-164.1,0.00028356,2]
[328945092,1718021443306,-422.39,0.00028356,2]
[328945093,1718021443316,-119864.9065,0.000284,2]
[328945094,1718021443327,-866.48292433,0.000284,4]
[328945095,1718021443337,-786.34039662,0.000284,2]
[328945096,1718021443347,-178.89775613,0.00028403,2]
[328945097,1718021443358,-167.66062721,0.00028403,2]
[328945098,1718021443369,-274.18,0.00028411,3]
[328945099,1718021443379,-1122.7731742,0.00028436,2]
[328945100,1718021443390,-1273.01465326,0.00028436,2]
[328945101,1718021443400,-158.18324502,0.00028436,5]
[328945102,1718021443411,-174.98775606,0.00028436,2]
[328945103,1718021443421,-165.05787612,0.00028436,2]
[328945104,1718021443432,-153.76010169,0.00028445,2]
[328945105,1718021443443,-151.95,0.0002849,2]
[328945106,1718021443454,-151.95,0.0002849,2]
[328945107,1718021443464,-151.95,0.0002849,2]
[328945108,1718021443474,-151.95,0.0002849,2]
[328945109,1718021443485,-151.95,0.0002849,2]
[328945110,1718021443496,-151.95,0.0002849,2]
[328945111,1718021443507,-151.95,0.0002849,2]
[328945112,1718021443517,-150.0,0.00028493,7]
[328945113,1718021443528,-161.43320971,0.00028493,7]
[328945114,1718021443538,-150.0,0.00028493,7]
[328945115,1718021443548,-150.0,0.00028493,7]
[328945116,1718021443557,-183.89626706,0.00028493,7]
[328945117,1718021443568,-271.65498901,0.00028498,2]
[328945118,1718021443577,-454.63994464,0.00028498,2]
[328945119,1718021443587,-157.1634328,0.00028498,2]
[328945120,1718021443596,-3876.19058384,0.00028498,2]
[328945121,1718021443605,-150.0,0.00028498,5]
[328945122,1718021443615,-2368.92760573,0.00028499,2]
[328945123,1718021443625,-308603.27100058,0.000285,13]
[328945124,1718021443808,-777.6048,0.000285,13]
[328945125,1718021443829,-57770.79697273,0.000285,13]
[328945126,1718021443840,-154776.44035464,0.000285,3]
[328945127,1718021444250,-6066.50493099,0.000285,3]
[328945128,1718021444262,-24846.64674518,0.000285,3]
[328945129,1718021444275,-17202.45648624,0.000285,3]
[328945130,1718021444558,-945.60901938,0.00025842,2]
[328945131,1718021444568,-26251.31938781,0.000285,3]
[328945132,1718021444581,-5978.82389332,0.000285,3]
[328945133,1718021444665,-26676.85511385,0.000285,3]
[328945134,1718021444752,-1.62205432,0.000285,3]
[328945135,1718021444939,-2591.50967905,0.000285,3]
[328945136,1718021444954,-732.78594998,0.000285,3]
[328945137,1718021444966,-418.37329392,0.000285,3]
[328945138,1718021445121,-1041.435,0.000285,3]
[328945139,1718021445195,-837.85853641,0.00027394,2]
[328945140,1718021445608,-4816.34,0.0002646,2]
[328945141,1718021445619,-107.94661199,0.00027394,2]
[328945142,1718021445630,-6952.55309619,0.000285,3]
[328945143,1718021446004,-316.40963884,0.000285,3]
[328945167,1718021447121,-226.69645122,0.00021374,2]
[328945168,1718021447134,-52.05582985,0.000285,3]
[328945169,1718021447164,-11356.31233505,0.000285,3]
[328945170,1718021447397,-24101.93268479,0.000285,3]
[328945171,1718021447411,-228079.03777717,0.000285,3]
[328945172,1718021447424,-45681.46115902,0.000285,3]
[328945173,1718021448340,-107.13986617,0.000285,3]
[328945190,1718022442121,-200.03186853,0.00017259,2]
[328945192,1718022546112,-195.87692784,0.00017259,2]
[328945193,1718022552863,957.98460544,0.00016396,2]
[328945194,1718022561126,-1884.0,0.000193,2]
[328945195,1718022561156,-226.69645122,0.000201,2]
[328945196,1718022561183,-499.99,0.00022,2]
[328945197,1718022561210,-170.0,0.00022,2]
[328945198,1718022561237,-549.50595062,0.000228,2]
[328945199,1718022561263,-2171.82,0.000228,2]
[328945200,1718022561289,-3486.49159881,0.000228,2]
[328945201,1718022566839,452.89401685,0.00016396,2]
[328945202,1718022589173,140.81725761,0.00017259,2]
[328945215,1718022632210,-10538.97339168,0.00017258,2]
[328945216,1718022632222,-2962.04152435,0.00017258,2]
[328945217,1718022632232,-1510.12584397,0.00017259,2]
[328945218,1718022632248,-1206.31678711,0.00017259,2]
[328945219,1718022632259,-549.09326146,0.0002,2]
[328945220,1718022632270,-226.69645122,0.00021674,2]
[328945221,1718022632281,-170.0,0.00022,2]
[328945222,1718022632292,-310.26012697,0.000227,2]
[328945223,1718022632302,-1813.16840119,0.000228,2]
[328945224,1718022632313,-416.44,0.000228,2]
[328945225,1718022632324,-299.99,0.000228,7]
[328945226,1718022632336,-552.62,0.00023027,2]
[328945227,1718022632346,-3122.985941,0.00024178,2]
[328945228,1718022632357,-1500.0,0.000243,5]
[328945229,1718022632368,-168.89,0.00024384,2]
[328945230,1718022632378,-334.52,0.00024384,2]
[328945231,1718022632389,-921.44,0.00024776,2]
[328945232,1718022632400,-250.0,0.0002492,2]
[328945233,1718022632410,-182.83,0.00024945,2]
[328945234,1718022632421,-14033.09123268,0.00024945,2]
[328945235,1718022632447,-307.8334,0.00024945,2]
[328945236,1718022632630,-9559.07536732,0.00024945,2]
[328945237,1718022632640,-150.0,0.00025042,2]
[328945238,1718022632650,-250.0,0.00025042,2]
[328945239,1718022632660,-200.0,0.00025052,2]
[328945240,1718022632670,-9470.44,0.00025078,2]
[328945241,1718022632680,-250.0,0.00025115,2]
[328945242,1718022632691,-176.36,0.00025219,2]
[328945243,1718022632701,-1258.46,0.0002527,2]
[328945244,1718022632712,-552.62,0.00025291,2]
[328945245,1718022632724,-165.38,0.00025389,2]
[328945246,1718022632734,-1000.0,0.00025405,2]
[328945247,1718022632744,-165.24,0.00025437,2]
[328945248,1718022632754,-2051.36,0.00025437,2]
[328945249,1718022632765,-154.54,0.00025628,2]
[328945250,1718022632775,-300.05767079,0.00025842,2]
[328945251,1718022632786,-771.04248224,0.00025842,2]
[328945252,1718022632796,-154.54,0.0002585,2]
[328945253,1718022632806,-4865.66,0.00025852,2]
[328945254,1718022632816,-154.54,0.00026073,2]
[328945255,1718022632827,-234.68449565,0.0002612,2]
[328945256,1718022632839,-2805.23503191,0.0002612,2]
[328945257,1718022632850,-154.54,0.00026295,2]
[328945258,1718022632860,-154.54,0.00026518,2]
[328945259,1718022632870,-154.32068211,0.00026636,2]
[328945260,1718022632881,-155.00128118,0.00026705,2]
[328945261,1718022632891,-154.54,0.0002674,2]
[328945263,1718022632901,-154.4059849,0.00026824,2]
[328945265,1718022632911,-154.54,0.00026963,2]
[328945267,1718022632920,-387.098473,0.00027123,2]
[328945268,1718022632931,-155.00128118,0.00027316,2]
[328945269,1718022632940,-154.32068213,0.00027352,2]
[328945270,1718022632950,-625.63244102,0.00027358,2]
[328945271,1718022632960,-174.6,0.00027431,2]
[328945272,1718022632971,-552.62,0.00027554,2]
[328945273,1718022632980,-150.0,0.0002756,2]
[328945274,1718022632990,-292.087,0.0002756,2]
[328945275,1718022633000,-599.778,0.0002756,2]
[328945276,1718022633010,-546.0,0.0002756,2]
[328945277,1718022633020,-3176.0,0.0002756,2]
[328945278,1718022633030,-1304.0,0.0002756,2]
[328945279,1718022633040,-1978.0,0.0002756,2]
[328945280,1718022633050,-5155.0,0.0002756,2]
[328945281,1718022633060,-290.0,0.0002756,2]
[328945282,1718022633071,-987.258,0.0002756,2]
[328945283,1718022633081,-358.0,0.0002756,2]
[328945284,1718022633092,-2325.408,0.0002756,2]
[328945285,1718022633102,-1580.999,0.0002756,2]
[328945286,1718022633113,-152.84255886,0.00027945,2]
[328945287,1718022633123,-387.098473,0.00027945,14]
[328945288,1718022633134,-172.84,0.00027982,2]
[328945289,1718022633144,-2051.36,0.00028177,2]
[328945290,1718022633155,-601.2276,0.000282,2]
[328945291,1718022633166,-468.5538,0.000282,2]
[328945292,1718022633177,-9151.90792939,0.0002822,2]
[328945293,1718022633187,-365.46,0.0002829,3]
[328945294,1718022633198,-205.97883313,0.00028299,2]
[328945295,1718022633209,-500.0,0.000283,2]
[328945296,1718022633222,-100000.0,0.000283,2]
[328945297,1718022633232,-990.7379,0.000283,2]
[328945298,1718022633242,-499.90650328,0.00028323,2]
[328945299,1718022633253,-370.63462647,0.00028323,2]
[328945300,1718022633263,-408.14569046,0.00028399,2]
[328945301,1718022633274,-471.066753,0.00028399,2]
[328945302,1718022633285,-245000.0,0.000284,2]
[328945303,1718022633297,-152.84255886,0.00028423,2]
[328945304,1718022633308,-182.45983684,0.00028436,2]
[328945305,1718022633319,-170.41,0.0002847,15]
[328945306,1718022633330,-205.97883305,0.00028477,2]
[328945307,1718022633340,-150.5,0.0002848,15]
[328945308,1718022633351,-499.90650326,0.00028491,2]
[328945309,1718022633361,-157.98355192,0.00028498,4]
[328945310,1718022633371,-155.0,0.00028498,2]
[328945311,1718022633382,-3893.9489826,0.00028498,2]
[328945312,1718022633392,-790.69511824,0.00028498,2]
[328945313,1718022633404,-6263.53071247,0.00028498,2]
[328945314,1718022633415,-332.28214316,0.00028498,3]
[328945315,1718022633425,-255.91381025,0.00028498,3]
[328945316,1718022633435,-2230.53634968,0.00028499,7]
[328945317,1718022633446,-1771.58164,0.00028499,2]
[328945318,1718022633457,-26008.63619806,0.000285,2]
[328945326,1718022638081,-327.7311788,0.0002756,2]
[328945327,1718022638112,-1322.2688212,0.0002756,2]
[328945328,1718022638122,-1269.0,0.0002756,2]
[328945329,1718022638132,-11409.34669564,0.000285,2]
[328945330,1718022638145,-3646.45277639,0.000285,2]
[328945331,1718022638230,-11499.99973998,0.000285,2]
[328945332,1718022638248,-2388.16109725,0.000285,2]
[328945333,1718022638260,-3011.53935736,0.000285,2]
[328945334,1718022638273,-2658.93819207,0.000285,2]
[328945335,1718022638286,-6980.49781717,0.000285,2]
[328945336,1718022638298,-17390.96685064,0.000285,2]
[328945337,1718022638416,-32000.491529,0.000285,2]
[328945338,1718022638683,-347.53415406,0.000285,2]
[328945339,1718022638873,-100177.55841615,0.000285,2]
[328945340,1718022638884,-945.60901938,0.000285,2]
[328945341,1718022638895,-1000.0,0.00028581,2]
[328945342,1718022638905,-205.97883305,0.00028655,2]
[328945343,1718022638915,-499.90650326,0.00028659,2]
[328945344,1718022638926,-945.8051484,0.000287,2]
[328945345,1718022638936,-167.6606272,0.00028709,2]
[328945346,1718022638947,-4578.67021008,0.00028714,2]
[328945347,1718022638958,-152.0,0.00028743,3]
[328945348,1718022638968,-500.0,0.00028754,2]
[328945349,1718022638980,-387.098473,0.00028767,14]
[328945350,1718022638990,-151.97,0.0002879,2]
[328945351,1718022639000,-151.97,0.0002879,2]
[328945352,1718022639010,-345.62576659,0.00028799,2]
[328945353,1718022639021,-2911.47756308,0.000288,13]
[328945354,1718022639043,-12739.80001077,0.000288,13]
[328945363,1718022641111,-615.0,0.0002756,2]
[328945364,1718022641122,-13774.90904724,0.000288,13]
[328945365,1718022641221,-318.768411,0.000288,13]
[328945366,1718022641598,-500.0,0.00028502,2]
[328945408,1718022643144,-1000.0,0.00028502,2]
[328945409,1718022643157,-3461.8,0.00028502,2]
[328945410,1718022643168,-299.40935879,0.00028799,2]
[328945411,1718022643179,-109203.43224123,0.000288,13]
[328945420,1718022643333,-745.83403878,0.000288,13]
[328945421,1718022643451,-3843.32882048,0.000288,13]
[328945422,1718022643506,-40038.28625407,0.000288,13]
[328945423,1718022643518,-202053.66797577,0.000288,2]
[328945424,1718022643655,-947052.69177825,0.000288,2]
[328945426,1718022643666,-748.51544948,0.000288,2]
[328945428,1718022643676,-848.6764355,0.000288,2]
[328945430,1718022643687,-4372.24216295,0.000288,2]
[328945432,1718022643697,-412.35665805,0.00028818,2]
[328945434,1718022643707,-4578.67021,0.00028822,2]
[328945435,1718022643717,-160.13713916,0.00028823,2]
[328945436,1718022643728,-178.89775612,0.00028825,2]
[328945437,1718022643739,-499.90650326,0.00028827,2]
[328945438,1718022643749,-205.97883305,0.00028833,2]
[328945439,1718022643760,-150.0,0.00028877,7]
[328945440,1718022643770,-150.0,0.00028877,7]
[328945441,1718022643780,-151.97,0.0002889,2]
[328945442,1718022643790,-151.97,0.0002889,2]
[328945443,1718022643801,-151.97,0.0002889,2]
[328945444,1718022643811,-427.99091877,0.0002889,7]
[328945445,1718022643822,-792.23613721,0.00028898,2]
[328945446,1718022643832,-3100.10909556,0.00028898,2]
[328945447,1718022643842,-2137.58334898,0.00028898,2]
[328945448,1718022643852,-481.85167187,0.00028899,2]
[328945449,1718022643863,-890368.54563075,0.000289,7]